bitfinex/quotes_ETHUSD_20250420
["timestamp","ask_amount","ask_price","bid_price","bid_amount"]
[1745116242353,6.20208395,1612.4,1612.1,5.9299]
[1745116242559,12.04572338,1612.5,1612.1,12.19487867]
[1745116242760,18.24758143,1612.5,1612.1,12.19487747]
[1745116243161,12.04572338,1612.5,1612.1,12.194785]
[1745116243411,12.04572338,1612.5,1612.2,0.70147296]
[1745116243556,6.20211964,1612.4,1612.2,0.70147296]
[1745116244491,12.04572338,1612.5,1612.2,0.70147296]
[1745116244993,10.35521291,1612.5,1612.3,0.8164]
[1745116245287,16.55703469,1612.5,1612.3,0.8164]
[1745116245488,10.35521291,1612.5,1612.3,0.8164]
[1745116245661,16.55711157,1612.5,1612.3,0.8164]
[1745116246270,16.55706587,1612.5,1612.3,0.8164]
[1745116247199,16.55706587,1612.5,1612.2,0.8164]
[1745116247402,12.40360764,1612.5,1612.2,0.8164]
[1745116248408,6.20175468,1612.5,1612.2,0.8164]
[1745116248900,6.20175468,1612.5,1612.1,11.31996748]
[1745116248901,6.20208339,1612.4,1612.1,5.117]
[1745116249200,6.2026207,1612.3,1612.1,5.117]
[1745116250233,7.89258929,1612.4,1612.1,5.117]
[1745116251200,14.09481473,1612.4,1612.1,5.117]
[1745116251377,7.89258929,1612.4,1612.1,5.117]
[1745116251775,7.89258929,1612.4,1612.2,0.8049]
[1745116252096,13.96258929,1612.4,1612.2,0.8049]
[1745116254019,20.16480375,1612.4,1612.1,5.9385]
[1745116254178,13.96258929,1612.4,1612.1,5.9385]
[1745116254885,13.96258929,1612.4,1612.1,5.117]
[1745116254886,10.05697582,1612.4,1612.1,5.117]
[1745116255096,6.96768339,1612.2,1612.1,5.115]
[1745116256105,0.7647,1612.2,1612.1,5.115]
[1745116256300,6.20250527,1612.3,1612.1,5.115]
[1745116260197,6.20250527,1612.3,1612.1,5.8741]
[1745116261719,12.40508462,1612.3,1612.1,5.8741]
[1745116261889,6.20250527,1612.3,1612.1,5.8741]
[1745116262917,12.40513844,1612.3,1612.1,5.8741]
[1745116264214,12.40513844,1612.3,1612.1,5.115]
[1745116266222,6.20270437,1612.2,1612.1,5.115]
[1745116267023,6.20250527,1612.3,1612.1,5.115]
[1745116267522,12.40508664,1612.3,1612.1,5.115]
[1745116267820,14.72719408,1612.4,1612.1,5.115]
[1745116267985,14.72719408,1612.4,1612.1,6.32429415]
[1745116268538,12.27198361,1612.4,1612.1,6.32429415]
[1745116268693,12.27198361,1612.4,1612.2,0.7564]
[1745116268893,18.47419532,1612.4,1612.2,0.7564]
[1745116269425,12.27198361,1612.4,1612.2,0.7564]
[1745116269627,6.07,1612.5,1612.2,7.72892217]
[1745116269822,6.07,1612.5,1612.2,7.66689755]
[1745116270320,6.07,1612.5,1612.2,6.91049755]
[1745116270524,6.07,1612.5,1612.3,0.7564]
[1745116270824,6.07,1612.5,1612.3,7.72531989]
[1745116271430,6.07,1612.5,1612.3,1.52308976]
[1745116272140,6.07,1612.5,1612.3,7.78722893]
[1745116272508,6.07,1612.5,1612.3,7.72515693]
[1745116272703,6.07,1612.5,1612.3,8.19858533]
[1745116272909,6.07,1612.5,1612.4,0.81985853]
[1745116275399,6.20099458,1612.7,1612.5,0.7674]
[1745116275595,6.20099458,1612.7,1612.5,5.8814]
[1745116276936,14.73285157,1612.8,1612.5,5.8814]
[1745116277139,0.55,1613.1,1612.7,6.20061021]
[1745116277140,19.24715542,1613.1,1612.7,6.20061021]
[1745116277347,6.19965005,1613.0,1612.8,3.0]
[1745116277634,6.19965005,1613.0,1612.9,5.114]
[1745116277851,13.04755797,1613.1,1612.9,5.114]
[1745116278051,19.24714068,1613.1,1612.9,5.114]
[1745116278408,6.19962802,1613.0,1612.9,5.114]
[1745116278607,6.8482,1613.1,1612.6,4.40434]
[1745116278806,6.20020033,1612.9,1612.8,3.0]
[1745116279134,6.19979807,1613.0,1612.8,3.0]
[1745116279738,6.2000124,1612.9,1612.7,5.114]
[1745116280107,6.2000124,1612.9,1612.8,5.114]
[1745116281440,6.2000124,1612.9,1612.8,5.113]
[1745116283048,6.19981127,1613.0,1612.8,5.113]
[1745116294256,0.7698,1612.9,1612.5,3.0]
[1745116294553,6.20101997,1612.7,1612.6,5.113]
[1745116296159,6.20101997,1612.7,1612.6,7.16512079]
[1745116296322,6.20057498,1612.8,1612.6,7.16512079]
[1745116298032,12.40128068,1612.8,1612.6,7.16512079]
[1745116298363,6.20057498,1612.8,1612.6,7.16512079]
[1745116299743,12.40123269,1612.8,1612.6,7.16512079]
[1745116300132,6.20057498,1612.8,1612.6,7.16512079]
[1745116300669,12.40129219,1612.8,1612.6,7.16512079]
[1745116303072,6.20078129,1612.7,1612.6,7.16512079]
[1745116303439,12.40124498,1612.8,1612.6,7.16512079]
[1745116303736,6.20057498,1612.8,1612.6,7.16512079]
[1745116304163,12.40125895,1612.8,1612.6,7.16512079]
[1745116306765,6.20057498,1612.8,1612.6,7.16512079]
[1745116307360,12.4012699,1612.8,1612.6,7.91742079]
[1745116307555,6.20078129,1612.7,1612.6,7.91742079]
[1745116308339,6.20078129,1612.7,1612.6,7.16512079]
[1745116312673,6.20057498,1612.8,1612.6,7.16512079]
[1745116312889,12.40129952,1612.8,1612.6,7.16512079]
[1745116313865,6.20057498,1612.8,1612.6,7.16512079]
[1745116317571,12.40134069,1612.8,1612.6,7.16512079]
[1745116317793,6.20057498,1612.8,1612.7,5.113]
[1745116322786,12.40134069,1612.8,1612.6,7.16512079]
[1745116323160,12.40125325,1612.8,1612.6,7.16512079]
[1745116324590,6.20057498,1612.8,1612.6,7.16512079]
[1745116324888,12.40127439,1612.8,1612.6,7.16512079]
[1745116327392,6.20057498,1612.8,1612.7,5.113]
[1745116329893,6.20057498,1612.8,1612.7,5.113]
[1745116337491,13.03999931,1612.9,1612.7,5.113]
[1745116337696,6.07,1612.9,1612.8,6.20039682]
[1745116337884,6.07,1613.1,1612.9,0.7985]
[1745116338399,6.07,1613.1,1612.9,6.99834725]
[1745116338602,6.07,1613.1,1612.9,8.32439802]
[1745116339464,6.07,1613.1,1612.9,2.12455077]
[1745116339666,12.26943971,1613.1,1613.0,5.112]
[1745116341477,14.76545921,1613.1,1613.0,5.112]
[1745116343203,6.07,1613.1,1613.0,5.112]
[1745116343698,12.26924369,1613.1,1613.0,5.112]
[1745116343867,13.04444369,1613.1,1613.0,5.112]
[1745116346301,6.07,1613.1,1613.0,5.112]
[1745116347806,12.26938645,1613.1,1613.0,5.112]
[1745116348603,6.07,1613.1,1613.0,5.112]
[1745116348901,18.46823326,1613.2,1613.0,5.112]
[1745116349120,20.56154854,1613.2,1613.0,5.112]
[1745116349402,6.19924369,1613.1,1613.0,5.112]
[1745116358713,12.26909843,1613.2,1613.0,5.112]
[1745116359011,6.07,1613.2,1613.0,5.112]
[1745116359580,12.26890635,1613.2,1613.0,5.112]
[1745116360205,6.07,1613.2,1613.0,5.112]
[1745116360406,6.07,1613.2,1613.1,0.8014]
[1745116360574,13.95835502,1613.3,1613.1,0.8014]
[1745116361111,20.15710788,1613.3,1613.1,0.8014]
[1745116361911,6.1988594,1613.2,1613.0,5.112]
[1745116362111,6.1988594,1613.2,1613.0,5.8762]
[1745116362841,20.15710471,1613.3,1613.0,5.8762]
[1745116363009,13.95835502,1613.3,1613.0,5.8762]
[1745116363218,6.19891239,1613.2,1613.0,5.8762]
[1745116363512,13.95835502,1613.3,1613.0,5.8762]
[1745116363716,20.15711582,1613.3,1613.0,5.8762]
[1745116364289,6.19890625,1613.2,1613.0,5.8762]
[1745116370226,6.19890625,1613.2,1613.1,5.111]
[1745116385821,9.01973238,1613.2,1613.1,5.111]
[1745116387552,7.00400625,1613.2,1613.1,5.111]
[1745116390168,6.19890625,1613.2,1613.1,5.111]
[1745116391438,6.19890625,1613.2,1613.1,5.9259]
[1745116392258,6.19890625,1613.2,1613.1,5.111]
[1745116400868,6.19928,1613.1,1612.9,0.8147]
[1745116401072,6.19928,1613.1,1613.0,5.11]
[1745116409577,1.6897195,1613.2,1613.0,5.70348]
[1745116409783,6.19889647,1613.2,1613.0,5.70348]
[1745116412684,6.19889647,1613.2,1613.0,5.11]
[1745116414563,7.88861597,1613.2,1613.1,5.11]
[1745116418059,4.15345823,1613.7,1613.2,6.1988594]
[1745116418260,4.15345823,1613.7,1613.5,6.19765193]
[1745116418581,4.15345823,1613.7,1613.5,11.30765839]
[1745116419262,4.15345823,1613.7,1613.5,11.3074708]
[1745116419463,4.15345823,1613.7,1613.5,5.11]
[1745116420762,4.15345823,1613.7,1613.5,11.30765648]
[1745116421593,4.15345823,1613.7,1613.5,11.30745394]
[1745116422095,6.07,1613.8,1613.5,11.30745394]
[1745116423893,6.07,1613.8,1613.6,6.19732075]
[1745116424104,1.6897195,1613.9,1613.6,7.01649163]
[1745116424393,1.6897195,1613.9,1613.7,6.19682767]
[1745116424870,6.07,1614.0,1613.7,7.5181596]
[1745116425264,12.26581442,1614.0,1613.7,7.5181596]
[1745116425992,12.26581442,1614.0,1613.6,7.01649163]
[1745116426187,6.19619729,1613.9,1613.6,7.01649163]
[1745116426794,6.19801249,1613.5,1613.4,5.109]
[1745116426967,8.70153199,1613.5,1613.4,5.109]
[1745116427574,2.5035195,1613.5,1613.4,5.109]
[1745116427898,1.6897195,1613.5,1613.4,5.109]
[1745116428095,14.08481398,1613.6,1613.4,5.109]
[1745116428995,1.6897195,1613.6,1613.4,5.109]
[1745116429196,7.8870821,1613.6,1613.4,5.109]
[1745116433103,6.19770684,1613.5,1613.4,5.109]
[1745116434602,7.8870821,1613.6,1613.4,5.109]
[1745116436111,13.0809722,1613.7,1613.4,5.109]
[1745116436272,6.19733238,1613.6,1613.4,5.109]
[1745116437824,6.07,1613.7,1613.5,6.1975378]
[1745116438192,6.07,1613.7,1613.4,13.25734502]
[1745116438722,12.26703473,1613.7,1613.4,13.25734502]
[1745116439802,6.19703473,1613.7,1613.4,13.25734502]
[1745116440721,12.26665683,1613.8,1613.4,19.45517657]
[1745116441225,12.26665683,1613.8,1613.5,1.28613718]
[1745116442312,18.46348577,1613.8,1613.4,12.12653155]
[1745116443328,12.26665683,1613.8,1613.4,12.12653155]
[1745116443488,12.26665683,1613.8,1613.5,6.19757203]
[1745116444494,6.07,1613.8,1613.5,6.19746825]
[1745116444716,12.26660275,1613.8,1613.5,6.19746825]
[1745116445013,6.07,1613.8,1613.5,6.19746825]
[1745116445516,6.19668597,1613.8,1613.5,6.19746825]
[1745116449315,20.97136059,1613.9,1613.5,6.19746825]
[1745116450319,6.19657995,1613.8,1613.5,6.19746825]
[1745116456215,6.19657995,1613.8,1613.6,5.108]
[1745116458430,6.19657995,1613.8,1613.6,5.8762]
[1745116459328,6.07,1613.9,1613.6,12.07315824]
[1745116459631,6.07,1613.9,1613.7,1.20731582]
[1745116459800,6.07,1613.9,1613.7,7.40422618]
[1745116461830,6.07,1613.9,1613.7,1.20731582]
[1745116462435,6.07,1613.9,1613.7,7.40424985]
[1745116462799,6.07,1613.9,1613.7,1.20731582]
[1745116463225,12.26597112,1614.0,1613.7,1.20731582]
[1745116465479,12.26597112,1614.0,1613.8,0.8119]
[1745116465601,6.19680575,1613.8,1613.5,3.0]
[1745116465806,6.19680575,1613.8,1613.6,5.107]
[1745116466306,6.19680575,1613.8,1613.5,3.0]
[1745116466506,6.19680575,1613.8,1613.7,5.107]
[1745116469059,12.26680575,1613.8,1613.7,5.107]
[1745116470456,6.1978176,1613.5,1613.3,3.0]
[1745116470762,8.64083052,1613.6,1613.4,5.107]
[1745116471970,8.64083052,1613.6,1613.3,9.19846919]
[1745116472258,8.64083052,1613.6,1613.5,5.107]
[1745116476572,8.64083052,1613.6,1613.3,9.19846847]
[1745116476876,8.64083052,1613.6,1613.5,5.108]
[1745116477969,7.88713052,1613.6,1613.5,5.108]
[1745116478175,6.19741102,1613.6,1613.5,5.108]
[1745116478544,6.19741102,1613.6,1613.4,0.7854]
[1745116478744,6.19741102,1613.6,1613.5,5.108]
[1745116479449,6.19715779,1613.7,1613.5,5.108]
[1745116479645,12.39445957,1613.7,1613.5,5.108]
[1745116479840,6.19732275,1613.6,1613.5,5.108]
[1745116480056,12.3943626,1613.7,1613.5,5.108]
[1745116481784,6.19715779,1613.7,1613.5,5.108]
[1745116485990,12.39440863,1613.7,1613.5,5.108]
[1745116487002,6.19715779,1613.7,1613.5,5.108]
[1745116489067,12.39437928,1613.7,1613.5,5.108]
[1745116489372,6.19732275,1613.6,1613.5,5.108]
[1745116492332,12.39445063,1613.7,1613.5,5.108]
[1745116493523,6.19715779,1613.7,1613.5,5.108]
[1745116493695,12.39440562,1613.7,1613.5,5.108]
[1745116493895,12.39440562,1613.7,1613.4,0.7854]
[1745116494196,12.39440562,1613.7,1613.5,5.108]
[1745116496625,6.19732275,1613.6,1613.5,5.108]
[1745116497994,12.39447873,1613.7,1613.5,5.108]
[1745116499145,6.19732275,1613.6,1613.5,5.108]
[1745116504950,13.95646973,1613.8,1613.5,5.108]
[1745116505156,6.19638985,1613.9,1613.6,7.51635498]
[1745116506165,6.19638985,1613.9,1613.6,1.3192]
[1745116506756,12.39286804,1613.9,1613.6,1.3192]
[1745116506961,6.19638985,1613.9,1613.6,1.3192]
[1745116508573,6.19638985,1613.9,1613.6,7.51648075]
[1745116508763,6.19638985,1613.9,1613.7,0.75164808]
[1745116508937,6.19638985,1613.9,1613.8,5.107]
[1745116510165,6.95607076,1613.9,1613.8,5.107]
[1745116510338,6.19721949,1613.7,1613.5,3.0]
[1745116510544,6.19721949,1613.7,1613.6,5.107]
[1745116510851,6.95711949,1613.7,1613.6,5.107]
[1745116511658,6.19769505,1613.6,1613.5,5.107]
[1745116514379,13.02702361,1613.7,1613.5,5.107]
[1745116515279,19.22423888,1613.7,1613.5,5.107]
[1745116515676,6.19732275,1613.6,1613.5,5.107]
[1745116516182,13.02702361,1613.7,1613.5,5.107]
[1745116516678,6.07,1613.7,1613.5,5.107]
[1745116516874,6.07,1613.7,1613.5,5.70505773]
[1745116517073,12.2670417,1613.7,1613.5,5.70505773]
[1745116521934,6.1970417,1613.7,1613.5,5.70505773]
[1745116523466,18.46351516,1613.8,1613.5,5.70505773]
[1745116523666,18.46351516,1613.8,1613.5,5.107]
[1745116525564,6.19695975,1613.7,1613.5,5.107]
[1745116528497,18.46355304,1613.8,1613.5,5.107]
[1745116530678,6.19697265,1613.7,1613.5,5.107]
[1745116531692,6.19697265,1613.7,1613.6,5.107]
[1745116534799,18.46353938,1613.8,1613.6,5.107]
[1745116535296,12.26669933,1613.8,1613.6,5.107]
[1745116535501,7.88579063,1614.0,1613.7,0.5107]
[1745116535732,6.19634474,1613.9,1613.6,12.07425051]
[1745116537283,7.88576898,1614.0,1613.6,12.07425051]
[1745116537499,7.88576898,1614.0,1613.6,18.27134678]
[1745116537802,14.08184043,1614.0,1613.6,12.07417198]
[1745116538175,6.19621648,1613.9,1613.6,12.07417198]
[1745116541201,7.88576898,1614.0,1613.6,12.07417198]
[1745116541509,6.19617369,1613.9,1613.6,12.07417198]
[1745116546210,6.19617369,1613.9,1613.7,5.107]
[1745116549020,7.88576898,1614.0,1613.7,5.107]
[1745116549227,14.08186616,1614.0,1613.7,5.107]
[1745116549827,6.1962345,1613.9,1613.7,5.107]
[1745116550932,6.1962345,1613.9,1613.8,5.107]
[1745116551626,7.88576898,1614.0,1613.8,5.107]
[1745116551796,14.0819027,1614.0,1613.8,5.107]
[1745116551999,14.0818716,1614.0,1613.8,5.107]
[1745116552927,7.88576898,1614.0,1613.8,5.107]
[1745116553110,14.08187088,1614.0,1613.8,5.107]
[1745116553816,14.08181956,1614.0,1613.8,5.107]
[1745116554326,6.8547,1614.1,1613.8,5.8884]
[1745116554327,13.05019216,1614.1,1613.8,5.8884]
[1745116555329,12.26549216,1614.1,1613.8,12.08484646]
[1745116556602,12.26549216,1614.1,1613.8,5.8884]
[1745116557002,6.19549216,1614.1,1613.8,5.8884]
[1745116557323,12.39118664,1614.1,1613.8,5.8884]
[1745116558246,6.19549216,1614.1,1613.8,5.8884]
[1745116559332,12.39117505,1614.1,1613.8,5.8884]
[1745116560133,6.19594628,1614.0,1613.8,7.0969088]
[1745116560334,6.19594628,1614.0,1613.8,5.8884]
[1745116565792,0.8285,1613.9,1613.6,0.822]
[1745116565955,7.02543871,1613.7,1613.6,5.106]
[1745116569351,6.19741581,1613.6,1613.4,3.0]
[1745116569507,6.19741581,1613.6,1613.5,5.106]
[1745116570440,7.02543871,1613.7,1613.5,5.106]
[1745116570618,13.2226486,1613.7,1613.5,5.106]
[1745116570813,7.02543871,1613.7,1613.5,5.106]
[1745116571310,0.8285,1613.7,1613.5,5.99998741]
[1745116571508,7.02562943,1613.7,1613.5,5.99998741]
[1745116571944,13.22284993,1613.7,1613.5,5.99998741]
[1745116572146,13.22283355,1613.7,1613.5,5.99998741]
[1745116572645,13.22285999,1613.7,1613.5,5.99998741]
[1745116573851,7.02562943,1613.7,1613.5,5.99998741]
[1745116575447,13.95649492,1613.8,1613.5,12.19767917]
[1745116575650,13.95649492,1613.8,1613.6,1.21976792]
[1745116576150,13.95649492,1613.8,1613.5,11.30368185]
[1745116576549,13.95649492,1613.8,1613.5,5.106]
[1745116577254,6.19698523,1613.7,1613.5,5.106]
[1745116577932,13.95649492,1613.8,1613.5,5.106]
[1745116578229,13.95649492,1613.8,1613.5,5.16797032]
[1745116578431,13.95649492,1613.8,1613.6,0.51679703]
[1745116578629,20.15332303,1613.8,1613.5,5.16797032]
[1745116579057,20.15332303,1613.8,1613.5,5.106]
[1745116580621,6.19698022,1613.7,1613.5,5.106]
[1745116582460,6.19698022,1613.7,1613.5,5.1679704]
[1745116583553,6.19698022,1613.7,1613.5,5.106]
[1745116583718,13.95649492,1613.8,1613.5,6.61357972]
[1745116583719,20.15342306,1613.8,1613.5,6.61357972]
[1745116583923,13.95649492,1613.8,1613.5,6.61357972]
[1745116584255,20.15334189,1613.8,1613.5,6.61357972]
[1745116584554,13.95649492,1613.8,1613.5,6.61357972]
[1745116585362,20.1533415,1613.8,1613.5,6.61357972]
[1745116586163,13.95649492,1613.8,1613.5,6.61357972]
[1745116586664,13.95649492,1613.8,1613.5,12.87318988]
[1745116586865,13.95649492,1613.8,1613.6,0.90927305]
[1745116587028,13.95649492,1613.8,1613.5,11.30363972]
[1745116587232,13.95649492,1613.8,1613.5,11.36561013]
[1745116587433,13.95649492,1613.8,1613.5,11.30363972]
[1745116587654,20.1534305,1613.8,1613.5,5.106]
[1745116588158,20.15332501,1613.8,1613.5,5.106]
[1745116588655,6.19694805,1613.7,1613.5,5.106]
[1745116589056,13.17293091,1613.7,1613.5,5.106]
[1745116590148,6.97564805,1613.7,1613.5,5.106]
[1745116591069,13.17289875,1613.7,1613.5,5.106]
[1745116591771,6.97564805,1613.7,1613.5,5.106]
[1745116592174,13.17288576,1613.7,1613.5,5.106]
[1745116592473,6.19799504,1613.5,1613.3,0.7872]
[1745116592647,6.19799504,1613.5,1613.4,5.106]
[1745116592853,7.88720728,1613.6,1613.4,5.106]
[1745116593053,6.19770684,1613.5,1613.2,6.98583099]
[1745116593262,6.19770684,1613.5,1613.3,5.106]
[1745116593444,6.19770684,1613.5,1613.3,6.3151831]
[1745116600675,7.88720728,1613.6,1613.3,12.51357911]
[1745116600881,6.19748778,1613.6,1613.4,0.8227]
[1745116602276,12.39509809,1613.6,1613.4,0.8227]
[1745116602481,6.19748778,1613.6,1613.5,5.106]
[1745116606560,8.54623896,1613.6,1613.5,5.106]
[1745116606756,6.19806327,1613.5,1613.2,3.7726]
[1745116606956,12.39612676,1613.5,1613.3,5.106]
[1745116609590,12.39606757,1613.5,1613.3,5.106]
[1745116609759,6.1980043,1613.5,1613.3,5.106]
[1745116609955,6.1980043,1613.5,1613.3,5.99386]
[1745116610185,12.39598482,1613.5,1613.3,5.99386]
[1745116610389,12.39596799,1613.5,1613.3,5.99386]
[1745116611190,6.19798052,1613.5,1613.3,5.99386]
[1745116616761,12.26748882,1613.6,1613.3,5.99386]
[1745116616966,18.46509138,1613.6,1613.3,6.80876]
[1745116618999,12.26748882,1613.6,1613.3,6.87073893]
[1745116619193,12.26748882,1613.6,1613.4,0.68707389]
[1745116619398,12.26748882,1613.6,1613.3,13.00711311]
[1745116620773,12.26736864,1613.6,1613.3,13.00700347]
[1745116621471,6.07,1613.6,1613.3,13.00700347]
[1745116621671,6.19738024,1613.6,1613.3,13.00700347]
[1745116624608,6.19738024,1613.6,1613.3,6.80876]
[1745116624778,6.19783657,1613.5,1613.3,6.80876]
[1745116628209,6.19783657,1613.5,1613.4,5.105]
[1745116629713,7.00898024,1613.6,1613.4,5.105]
[1745116630010,6.19738024,1613.6,1613.4,5.105]
[1745116630305,6.19713539,1613.7,1613.4,5.105]
[1745116630479,12.39441983,1613.7,1613.4,6.40560358]
[1745116630679,6.19733253,1613.6,1613.4,6.40560358]
[1745116633010,6.19733253,1613.6,1613.5,5.105]
[1745116633905,12.39434987,1613.7,1613.5,5.105]
[1745116635411,6.19732275,1613.6,1613.5,5.105]
[1745116644832,12.26672097,1613.8,1613.5,12.62676408]
[1745116645012,6.19672097,1613.8,1613.5,12.62676408]
[1745116646624,6.19672097,1613.8,1613.5,6.4292]
[1745116646825,6.19672097,1613.8,1613.5,12.62677756]
[1745116647020,6.19672097,1613.8,1613.5,6.4292]
[1745116648127,6.19672097,1613.8,1613.5,12.62686997]
[1745116651936,6.19672097,1613.8,1613.5,6.4292]
[1745116652735,6.97812097,1613.8,1613.5,6.4292]
[1745116656635,6.97812097,1613.8,1613.5,12.62686241]
[1745116656802,6.19672097,1613.8,1613.6,1.26268624]
[1745116657008,6.19672097,1613.8,1613.7,5.104]
[1745116657432,13.09456045,1614.0,1613.7,5.8692]
[1745116657636,13.09419749,1614.1,1613.7,12.06595719]
[1745116658110,13.09419749,1614.1,1613.7,12.12791887]
[1745116658837,13.09419749,1614.1,1613.7,12.06595719]
[1745116659239,13.09419749,1614.1,1613.7,12.12791893]
[1745116659745,6.19593021,1614.0,1613.7,5.8692]
[1745116660047,6.19593021,1614.0,1613.7,5.93116174]
[1745116661344,13.09421178,1614.1,1613.7,12.12797954]
[1745116662241,6.19598873,1614.0,1613.7,5.93116174]
[1745116662542,6.19598873,1614.0,1613.7,7.14398378]
[1745116663832,1.6897195,1613.8,1613.4,3.772]
[1745116664038,0.8082,1613.7,1613.5,8.104]
[1745116664841,13.95644588,1613.8,1613.5,8.16597329]
[1745116665044,13.95644588,1613.8,1613.5,14.36355837]
[1745116665346,13.95644588,1613.8,1613.5,14.30158508]
[1745116666949,13.95644588,1613.8,1613.5,8.104]
[1745116667640,13.95644588,1613.8,1613.5,14.3016696]
[1745116668451,7.88644588,1613.8,1613.5,14.3016696]
[1745116669546,1.6897195,1613.8,1613.5,14.30147073]
[1745116670055,13.20104079,1613.9,1613.5,14.30147073]
[1745116670255,7.00459525,1613.9,1613.5,20.49895116]
[1745116671933,13.2010266,1613.9,1613.5,14.30147073]
[1745116672860,13.2010266,1613.9,1613.5,20.49892071]
[1745116673358,6.19660969,1613.8,1613.5,14.30144998]
[1745116674261,7.00459525,1613.9,1613.6,6.19727803]
[1745116674432,13.20105003,1613.9,1613.5,14.30144998]
[1745116674727,13.20105003,1613.9,1613.5,15.80879498]
[1745116676556,13.95565467,1614.0,1613.6,0.8043]
[1745116676724,20.15171421,1614.0,1613.6,7.00132637]
[1745116676927,6.196263,1613.9,1613.6,7.00132637]
[1745116681062,6.196263,1613.9,1613.7,5.103]
[1745116682559,12.26593517,1614.0,1613.7,5.103]
[1745116682861,12.26581252,1614.0,1613.8,0.7936]
[1745116683066,6.19556299,1614.1,1613.8,0.7936]
[1745116683732,6.19556299,1614.1,1613.8,6.99013169]
[1745116683934,6.19556299,1614.1,1613.8,8.49747669]
[1745116684663,6.19556299,1614.1,1613.8,2.300945]
[1745116684867,6.19556299,1614.1,1613.8,8.49747427]
[1745116686162,6.19556299,1614.1,1613.8,2.300945]
[1745116689368,12.39122546,1614.1,1613.8,2.300945]
[1745116690032,6.19556299,1614.1,1613.8,2.300945]
[1745116691172,12.39124054,1614.1,1613.8,2.300945]
[1745116692234,6.19556299,1614.1,1613.8,2.300945]
[1745116692438,12.39123675,1614.1,1613.8,2.300945]
[1745116692879,6.19556299,1614.1,1613.8,2.300945]
[1745116693270,12.39123496,1614.1,1613.8,2.300945]
[1745116693473,6.19556299,1614.1,1613.8,8.49748402]
[1745116693972,6.19556299,1614.1,1613.8,2.300945]
[1745116694268,12.39127045,1614.1,1613.8,2.300945]
[1745116694837,6.19556299,1614.1,1613.8,8.49744393]
[1745116695069,18.12151545,1614.2,1613.9,0.84974439]
[1745116695372,11.9264195,1614.2,1613.9,6.19606683]
[1745116695668,11.9264195,1614.2,1614.0,5.103]
[1745116696062,18.12150474,1614.2,1614.0,5.103]
[1745116696466,4.1667,1614.2,1614.0,5.9246]
[1745116696668,4.1667,1614.2,1614.0,12.12017432]
[1745116696971,4.1667,1614.2,1614.1,1.21201743]
[1745116697340,4.1667,1614.2,1614.1,7.40742044]
[1745116697540,4.1667,1614.2,1614.1,8.22902044]
[1745116697938,4.1667,1614.2,1614.1,2.03361743]
[1745116705881,6.6719195,1614.2,1613.8,10.00237401]
[1745116706079,12.86727046,1614.2,1614.1,5.102]
[1745116708956,12.8669387,1614.2,1614.1,5.102]
[1745116709156,5.8564195,1614.2,1614.1,5.102]
[1745116714156,12.0514387,1614.2,1614.1,5.102]
[1745116714383,4.1667,1614.2,1614.1,5.102]
[1745116714550,5.8564195,1614.2,1614.1,5.102]
[1745116714955,12.0514387,1614.2,1614.1,5.102]
[1745116715185,10.3617192,1614.2,1614.1,5.102]
[1745116715390,4.1667,1614.2,1614.1,5.102]
[1745116720667,10.3617192,1614.2,1614.1,5.102]
[1745116720868,4.1667,1614.2,1614.1,5.102]
[1745116722690,4.1667,1614.2,1614.1,12.10670301]
[1745116729097,4.1667,1614.2,1614.1,7.00470301]
[1745116729395,5.8564195,1614.2,1614.1,5.101]
[1745116730972,12.8486387,1614.2,1614.1,5.101]
[1745116731681,12.8486387,1614.2,1614.0,3.0]
[1745116731871,12.8486387,1614.2,1614.1,5.101]
[1745116733579,8.55797242,1614.2,1613.7,60.04185184]
[1745116733772,6.19570153,1614.1,1613.8,8.101]
[1745116734097,12.84888672,1614.2,1613.8,14.29732239]
[1745116734472,12.84888672,1614.2,1613.9,6.19614763]
[1745116735419,12.84888672,1614.2,1614.0,5.101]
[1745116743925,4.1667,1614.2,1614.0,5.9169]
[1745116745193,4.1667,1614.2,1614.0,12.17449407]
[1745116745952,4.1667,1614.2,1614.0,12.11254091]
[1745116746230,4.1667,1614.2,1614.1,10.01130301]
[1745116756429,4.1667,1614.2,1614.1,16.14130301]
[1745116756918,4.1667,1614.2,1614.1,23.20630301]
[1745116762141,4.15345823,1615.3,1614.5,0.753]
[1745116762321,4.15345823,1615.3,1615.2,6.19118375]
[1745116762517,4.15345823,1615.3,1615.2,8.099]
[1745116762835,4.15345823,1615.3,1615.2,14.29018375]
[1745116763011,0.1,1615.4,1615.2,14.29018375]
[1745116763012,0.1,1615.4,1615.3,3.0]
[1745116763436,0.1,1615.4,1615.3,9.19080047]
[1745116772030,0.1,1615.4,1615.3,9.25270203]
[1745116774470,0.1,1615.4,1615.3,9.19080047]
[1745116775662,0.1,1615.4,1615.3,9.25270088]
[1745116776031,0.1,1615.4,1615.3,10.05340088]
[1745116778662,0.1,1615.4,1615.3,9.99150047]
[1745116782350,0.1,1615.4,1615.3,9.19080047]
[1745116783659,0.1,1615.4,1615.3,9.25269393]
[1745116784368,0.1,1615.4,1615.3,9.19080047]
[1745116788446,0.1,1615.4,1615.3,14.31080047]
[1745116792888,0.1,1615.4,1615.3,3.0]
[1745116793179,0.1,1615.4,1615.3,14.31080047]
[1745116796248,0.1,1615.4,1615.3,15.06300047]
[1745116797154,0.1,1615.4,1615.3,15.37489318]
[1745116797579,3.0,1615.7,1615.6,9.1896509]
[1745116797954,3.0,1615.7,1615.6,3.0]
[1745116798496,3.0,1615.7,1615.6,9.1896509]
[1745116805280,3.824,1615.7,1615.6,9.1896509]
[1745116805859,3.824,1615.7,1615.6,14.2966509]
[1745116806560,3.824,1615.7,1615.6,9.1896509]
[1745116806887,3.824,1615.7,1615.6,14.2966509]
[1745116807592,3.824,1615.7,1615.6,9.1896509]
[1745116807786,3.824,1615.7,1615.6,14.2966509]
[1745116810475,3.824,1615.7,1615.6,8.107]
[1745116810674,3.824,1615.7,1615.6,14.2966509]
[1745116810875,3.824,1615.7,1615.6,3.0]